Cogmind - Beta 15 @@@ ROGUE MODE // 2025.09.14 @ 16:27:01 Player: BLINGO GOVLIN Result: Destroyed by G-47 Trooper with Particle Gun Performance ------------- Evolutions (2) 1000 Regions Visited (3) 600 Robots Destroyed (66) 330 Value Destroyed (1833) 1833 Prototype IDs (0) 0 Alien Tech Used (0) 0 Bonus (0) 0 TOTAL SCORE: 3763 Bonus ------- None Cogmind --------- Core Integrity 0/550 Matter 181/300 Energy 80/100 System Corruption 0% Temperature Cool (9) Movement Core (250) Ox4 Location -8/Materials Parts ------- > --- POWER (1) -------- (None) > --- PROPULSION (4) --- (None) > --- UTILITY (4) ------ Medium Storage Unit > --- WEAPON (2) ------- Beam Rifle > --- INVENTORY (10) --- Ion Engine Cesium-ion Thruster Sensor Array Improved Signal Interpreter ECM Suite ECM Suite Hacking Suite Hacking Suite Hacking Suite Peak State ------------ > --- POWER ------------ Light Nuclear Core > --- PROPULSION ------- Light Treads Light Treads Aluminum Leg Carbon-fiber Leg > --- UTILITY ---------- Medium Storage Unit Structural Scanner Seismic Detector Improved Light Armor Plating > --- WEAPON ----------- Heavy Assault Rifle Assault Cannon > --- INVENTORY -------- Ion Engine Cesium-ion Thruster Sensor Array Improved Signal Interpreter ECM Suite ECM Suite Hacking Suite Hacking Suite Hacking Suite Mini Grenade Launcher [Rating: 22] Favorites ----------- Power Improved Ion Engine Engine Improved Ion Engine Power Core Light Nuclear Core Propulsion Aluminum Leg Treads Light Treads Leg Aluminum Leg Flight Unit Cesium-ion Thruster Utility Utility Shielding Device Seismic Detector Storage Medium Storage Unit Protection Utility Shielding Weapon Heavy Assault Rifle Energy Gun Beam Rifle Ballistic Gun Heavy Assault Rifle Ballistic Cannon Light Cannon Launcher Grenade Launcher Build | -11 -10 -9 -8 ------- Run | Yrd Mat Mat Mat Slots Evolved 4 | . . 2 2 Power . | . . . . Propulsion 2 | . . 1 1 Utility 2 | . . 1 1 Weapon . | . . . . Parts Attached 39 | 6 7 10 16 Power 5 | 1 1 2 1 Engine 3 | 1 . 2 . Core 2 | . 1 . 1 Reactor . | . . . . Propulsion 14 | 2 1 5 6 Treads 6 | 2 1 . 3 Leg 7 | . . 5 2 Wheel . | . . . . Hover . | . . . . Flight 1 | . . . 1 Utility 7 | 1 2 1 3 Device 2 | . . 1 1 Storage 2 | 1 1 . . Processor . | . . . . Hackware . | . . . . Protection 3 | . 1 . 2 Artifact . | . . . . Weapon 13 | 2 3 2 6 Energy Gun 2 | . . . 2 Energy Cannon . | . . . . Ballistic Gun 7 | 2 1 2 2 Ballistic Cannon 2 | . 1 . 1 Launcher 2 | . 1 . 1 Special Weapon . | . . . . Impact Weapon . | . . . . Slashing Weapon . | . . . . Piercing Weapon . | . . . . Special Melee Weapon . | . . . . Unidentified Prototypes . | . . . . Parts Lost 24 | . 6 1 17 Power 3 | . 1 . 2 Propulsion 10 | . 2 1 7 Utility 4 | . . . 4 Weapon 7 | . 3 . 4 Highest Loss Streak 11 | . 3 1 11 To Critical Strikes 1 | . 1 . . Average Backups 7 | . 4 9 9 Power . | . 1 1 1 Propulsion 1 | . 1 2 . Utility 3 | . . 4 7 Weapon 1 | . 1 1 1 Tool/Special . | . . . . Unused Backups 10 | . . 1 9 Power 1 | . . . 1 Propulsion 1 | . . 1 . Utility 8 | . . . 8 Weapon . | . . . . Tool/Special . | . . . . Average Slot Usage (%) 92 | . 93 99 83 Engine 9 | . 12 9 5 Core 1 | . . 1 2 Treads 12 | . 26 . 10 Leg 16 | . . 32 16 Device 8 | . . 10 15 Storage 11 | . 14 11 9 Protection 9 | . 10 11 7 Ballistic Gun 14 | . 20 11 13 Ballistic Cannon 6 | . 4 11 3 Peak Build Rating 22 | 6 10 12 22 Average Rating 10 | 4 6 11 14 On Entrance 6 | . 6 8 12 Naked Turns . | . . . . Heaviest Build 28 | 13 20 25 28 Greatest Support 40 | 40 40 30 40 Greatest Overweight (x) 8 | . . . 8 Average Overweight (x) . | . . . . Largest Inventory Capacity 10 | 8 10 10 10 Average Capacity 9 | 6 8 10 10 Most Carried 10 | 2 8 10 10 Average Carried 7 | . 4 9 9 Final Capacity 10 | 8 10 10 10 Final Carried 10 | 1 7 10 9 Class Distribution -------------------- 65% | Scavenger-Mutant 34% | Mutant Dominant Class ---------------- Mutant | -10/Materials Scavenger-Mutant | -9/Materials Scavenger-Mutant | -8/Materials Resources | -11 -10 -9 -8 ----------- Run | Yrd Mat Mat Mat Matter Collected 1473 | 249 347 371 506 Remotely . | . . . . Salvage Created 1899 | . 598 609 692 Parts 130 | . 39 42 49 Haulers Intercepted 3 | . 2 1 . Recyclers Shooed 1 | . . . 1 Parts Field Recycled . | . . . . Retrieved Matter . | . . . . Parts Self-Destructed . | . . . . Prevented . | . . . . Kills | -11 -10 -9 -8 ------- Run | Yrd Mat Mat Mat Combat Hostiles Destroyed 56 | . 18 18 20 Guns 25 | . 7 6 12 Cannons 19 | . 3 12 4 AOE 12 | . 8 . 4 Classes Destroyed 8 | . 6 1 1 Worker 2 | . 1 . 1 Hauler 3 | . 2 1 . Mechanic 1 | . . . 1 Operator 4 | . 2 2 . Swarmer 21 | . 6 7 8 Grunt 19 | . 10 5 4 Sentry 14 | . . 6 8 Subdweller 2 | . 2 . . Best Kill Streak 11 | . 6 7 11 Combat Bots Only 10 | . 5 7 10 Max Kills in Single Turn 4 | . 2 1 4 Gunslinging . | . . . . Exploded 4 | . 2 . 4 Melee . | . . . . Uniques/NPCs Destroyed . | . . . . Combat | -11 -10 -9 -8 -------- Run | Yrd Mat Mat Mat Hostile Shots Fired 353 | . 96 76 181 Missed 81 | . 27 19 35 Hits 272 | . 69 57 146 Projectile 272 | . 69 57 146 Critical Strikes 9 | . 3 3 3 Actively Blocked 1 | . 1 . . Damage Taken 3828 | . 968 698 2162 Core 922 | . 195 165 562 Absorbed by Shields . | . . . . Redirected to Shielding 43 | . 20 14 9 Core Remaining (%) 60 | 100 22 58 . Volleys Fired 169 | . 51 51 67 Largest 2 | . 2 2 2 Hottest 60 | . 50 53 60 Shots Fired 313 | . 89 102 122 Gun 205 | . 65 51 89 Cannon 94 | . 13 51 30 Launcher 14 | . 11 . 3 Special . | . . . . Kinetic 293 | . 78 102 113 Thermal 6 | . . . 6 Explosive 14 | . 11 . 3 Electromagnetic . | . . . . Robot Hit Streak 19 | . 7 14 19 Robot Miss Streak 3 | . 3 3 1 Penetration Max . | . . . . Secondary Targets . | . . . . Shots Hit Robots 214 | . 58 62 94 Core Hits 109 | . 37 31 41 Critical Kills . | . . . . Critical Parts Destroyed 1 | . . . 1 Critical Strikes 1 | . . . 1 Destroy 1 | . . . 1 Melee Attacks . | . . . . Impact . | . . . . Slashing . | . . . . Piercing . | . . . . Sneak Attacks . | . . . . Combat Hostiles . | . . . . Follow-up Attacks . | . . . . Damage Inflicted 4074 | . 1187 961 1926 Guns 1937 | . 480 401 1056 Cannons 1076 | . 104 527 445 Explosions 1028 | . 603 . 425 Melee . | . . . . Ramming 33 | . . 33 . Kinetic 2940 | . 584 928 1428 Thermal 73 | . . . 73 Explosive 974 | . 549 . 425 Electromagnetic 54 | . 54 . . Impact . | . . . . Slashing . | . . . . Piercing . | . . . . Highest Corruption . | . . . . Average Corruption . | . . . . Corruption Purged . | . . . . Corruption Blocked . | . . . . Overload Shots . | . . . . Overflow Damage 45 | . 8 6 31 Projectiles 16 | . . 6 10 Explosions 29 | . 8 . 21 Melee . | . . . . Knockbacks 9 | . 1 4 4 Impact . | . . . . Kinetic 9 | . 1 4 4 Secondary . | . . . . Self-Inflicted Damage 249 | . 165 . 84 Shots 9 | . 6 . 3 Rammed . | . . . . Targets Rammed 4 | . . 4 . Kicked 4 | . . 4 . Crushed . | . . . . Highest Temperature 35 | . 25 35 21 Average Temperature 8 | . 6 9 8 Received Heat Transfer 1410 | . 294 243 873 Siege Activations . | . . . . Martial Activations . | . . . . Shielding Activations . | . . . . Robots Disrupted . | . . . . Combat Hostiles . | . . . . Robots Corrupted . | . . . . Combat Hostiles . | . . . . Parts Fried 1 | . 1 . . Impact Corruptions . | . . . . Robots Melted . | . . . . Combat Hostiles . | . . . . Parts Melted 1 | . 1 . . Heat Transferred 185 | . . . 185 Parts Sabotaged . | . . . . Parts Stolen . | . . . . Parts Stripped . | . . . . Power Chain Reactions 1 | . 1 . . Alert | -11 -10 -9 -8 ------- Run | Yrd Mat Mat Mat Maximum Alert Level 1 | . 1 1 1 Low Security (%) 95 | 100 93 98 93 Level 1 4 | . 6 1 6 Level 2 . | . . . . Level 3 . | . . . . Level 4 . | . . . . Level 5 . | . . . . High Security . | . . . . Max Security . | . . . . Peak Influence 270 | . 226 209 270 Initial 79 | . . 79 65 Average 95 | . 106 131 49 Influence Increases 1777 | . 587 515 675 Destroy 0b10 Robot/C 1080 | . 320 360 400 Destroy 0b10 Robot/NC 50 | . 25 15 10 Destroy Leader 306 | . 84 102 120 Successful Hack 17 | . 6 6 5 Disable Machine 105 | . 60 . 45 Destroy Structure 84 | . 62 2 20 Lose Combat Pursuer 135 | . 30 30 75 Influence Decreases 1568 | . 398 548 622 Entered New Map 201 | . . 110 91 Time Decay 1111 | . 338 428 345 Lost Part 221 | . 60 10 151 Purge Threat 35 | . . . 35 Squads Dispatched 9 | . 3 2 4 Investigation 2 | . 2 . . Extermination . | . . . . Reinforcement 4 | . 1 2 1 Assault . | . . . . Garrison 3 | . . . 3 Intercept . | . . . . Searches Triggered . | . . . . Construction Impeded . | . . . . Haulers Reinforced . | . . . . Active Scanning Responses . | . . . . Cargo Convoy Interrupts . | . . . . Stealth | -11 -10 -9 -8 --------- Run | Yrd Mat Mat Mat Distress Signals 6 | . 2 3 1 Communications Jammed . | . . . . Distress Signals . | . . . . Times Spotted 97 | . 36 33 28 Peak Tracking Total 7 | . 5 7 7 Tactical Retreats 7 | . 1 2 4 Traps | -11 -10 -9 -8 ------- Run | Yrd Mat Mat Mat Traps Triggered 1 | . . 1 . Indirectly . | . . . . Trap Hack Attempts . | . . . . Triggered . | . . . . Disarmed . | . . . . Reprogrammed . | . . . . Reused . | . . . . Traps Extracted . | . . . . Installed . | . . . . Triggered . | . . . . Machines | -11 -10 -9 -8 ---------- Run | Yrd Mat Mat Mat Machines Disabled 7 | . 4 . 3 Max in Single Turn 4 | . 4 . 1 Machines Repaired . | . . . . Machines Dismantled . | . . . . Machines Sabotaged . | . . . . Overloaded Fab Kills . | . . . . Hacking | -11 -10 -9 -8 --------- Run | Yrd Mat Mat Mat Machines Accessed 12 | . 3 5 4 Terminals 11 | . 3 5 3 Fabricators . | . . . . Repair Stations . | . . . . Recycling Units . | . . . . Scanalyzers . | . . . . Garrison Access 1 | . . . 1 Total Hacks 23 | . 4 9 10 Successful 6 | . 2 1 3 Failed 17 | . 2 8 7 Catastrophic 4 | . 1 3 . Database Lockouts . | . . . . Manual 15 | . 3 8 4 Terminals 21 | . 4 9 8 Fabricators . | . . . . Repair Stations . | . . . . Recycling Units . | . . . . Scanalyzers . | . . . . Garrison Access 2 | . . . 2 Terminal Hacks 3 | . 1 . 2 Unreport Threat 1 | . . . 1 Hauler Manifests 2 | . 1 . 1 Fabricator Hacks . | . . . . Repair Station Hacks . | . . . . Recycling Unit Hacks . | . . . . Scanalyzer . | . . . . Garrison Access Hacks . | . . . . Unauthorized Hacks 3 | . 1 1 1 Terminals 3 | . 1 1 1 Operators 3 | . 1 1 1 Fabricators . | . . . . Repair Stations . | . . . . Recycling Units . | . . . . Scanalyzers . | . . . . Garrison Access . | . . . . Data Cores Recovered . | . . . . Used . | . . . . Hacking Detections 12 | . 3 5 4 Full Trace Events 1 | . 1 . . Feedback Events . | . . . . Feedback Blocked . | . . . . Robot Schematics Acquired . | . . . . Robots Built . | . . . . Authchips . | . . . . Time . | . . . . Total Robot Build Rating . | . . . . Part Schematics Acquired . | . . . . Parts Built . | . . . . Authchips . | . . . . Time . | . . . . Total Part Build Rating . | . . . . Parts Repaired . | . . . . Time . | . . . . Parts Recycled . | . . . . Recycled Matter . | . . . . Retrieved Matter . | . . . . Retrieved Components . | . . . . Parts Scanalyzed . | . . . . Part Schematics Acquired . | . . . . Parts Damaged . | . . . . Bothacking | -11 -10 -9 -8 ------------ Run | Yrd Mat Mat Mat Used RIF Installer . | . . . . Robots Hacked . | . . . . Non-combat . | . . . . Combat . | . . . . Robot Hacks Applied . | . . . . Relay Couplers Released . | . . . . Fabnet Peak Effective % . | . . . . Robots Rewired . | . . . . Allies Hacked . | . . . . Hacks Repelled . | . . . . Allies | -11 -10 -9 -8 -------- Run | Yrd Mat Mat Mat Total Allies . | . . . . Largest Group . | . . . . Highest-Rated Group . | . . . . Highest-Rated Ally . | . . . . Total Orders . | . . . . Ally Attacks . | . . . . Total Damage . | . . . . Kills . | . . . . Allies Corrupted . | . . . . Allies Melted . | . . . . Intel | -11 -10 -9 -8 ------- Run | Yrd Mat Mat Mat Active Infowar (turns) 1849 | . . 1026 823 Structural 823 | . . . 823 Seismic 1647 | . . 1026 621 Robot Analysis Total . | . . . . Derelict Logs Recovered . | . . . . Drone Launches . | . . . . Drone Recoveries . | . . . . Exploration | -11 -10 -9 -8 ------------- Run | Yrd Mat Mat Mat Turns Passed 2905 | 69 927 1041 868 Spaces Moved 1300 | 40 394 503 363 Core 37 | 6 . . 31 Treads 530 | 34 394 . 102 Legs 733 | . . 503 230 Wheels . | . . . . Hover . | . . . . Flight . | . . . . Fastest Speed 50 | 50 160 120 120 Average Speed 144 | 143 160 120 162 Slowest Speed 450 | 160 160 120 450 Overloaded Moves . | . . . . Propulsion Burnouts . | . . . . Robots Hopped . | . . . . Potential Cave-ins . | . . . . Cave-ins Triggered . | . . . . Exploration Rate (%) 39 | 3 66 44 45 Regions Visited 3 Branch Regions . Pre-discovered Areas . | . . . . Known Exits Taken . | . . . . Unknown Exits Taken 3 | 1 1 1 . Scrap Searched . | . . . . Spaces Dug 8 | . 8 . . Terrain Destroyed 92 | . 76 . 16 Melee . | . . . . Projectile 4 | . . . 4 AOE 88 | . 76 . 12 Terrain Rammed . | . . . . Walls Destroyed . | . . . . Machines Disabled . | . . . . Actions | -11 -10 -9 -8 --------- Run | Yrd Mat Mat Mat Total 2017 | 52 604 844 517 Wait 448 | . 136 256 56 Move 1297 | 39 393 502 363 Hop . | . . . . Pick Up 37 | 7 12 13 5 Fast Attach 8 | . . . 8 Attach 20 | 6 6 4 4 Detach 1 | . . . 1 Swap 19 | . 6 6 7 Drop 14 | . . 8 6 Fire 169 | . 51 51 67 Melee . | . . . . Ram . | . . . . Kick 4 | . . 4 . Crush . | . . . . Escape Stasis . | . . . . Rewire . | . . . . Trap . | . . . . Miscellaneous . | . . . . Route ------- -11/Scrapyard -10/Materials (discovered 3 exits: *Mat / [*Min] / [*Sub]) -9/Materials (discovered 2 exits: *Mat / [*Min]) -8/Materials (discovered 1 exit: [*Fac]) History --------- Turn | Location | Event 5 | -11/Scrapyard | Discovered new exit (range 15) 70 | -11/Scrapyard | Entered Materials 169 | -10/Materials | Discovered new exit (range 12) 326 | -10/Materials | Build established: Mutant 357 | -10/Materials | Discovered new exit (range 11) 731 | -10/Materials | Core integrity fell below 50% 770 | -10/Materials | Derelicts attacked the area 804 | -10/Materials | Discovered new exit (range 5) 937 | -10/Materials | Lost 3 parts (1p1n1w) 997 | -10/Materials | Entered another Materials area 997 | -9/Materials | Evolved 2 slots: Propulsion x1, Utility x1 1270 | -9/Materials | Build established: Scavenger-Mutant 1282 | -9/Materials | Destroyed 7 combat bots 1322 | -9/Materials | Discovered new exit (range 13) 1933 | -9/Materials | Discovered new exit (range 13) 2038 | -9/Materials | Entered another Materials area 2038 | -8/Materials | Evolved 2 slots: Propulsion x1, Utility x1 2150 | -8/Materials | Garrison activated, responded to threat 2463 | -8/Materials | Discovered new exit (range 8) 2853 | -8/Materials | Core integrity fell below 50% 2870 | -8/Materials | Destroyed 10 combat bots 2878 | -8/Materials | Core integrity fell below 20% 2906 | -8/Materials | Destroyed by G-47 Trooper with Particle Gun Last Messages --------------- 02865_ R-06 Scavenger collects Lgt. Assault Rifle. 02871_ Hvy. Assault Rifle destroyed. 02871_ Aluminum Leg destroyed. 02872_ G-47 Trooper heat damages Lgt. Nuclear Core. 02875_ Destroyed Lgt. Nuclear Core. 02875_ G-47 Trooper knocked back. 02879_ Assault Cannon destroyed. 02879_ Critical hit (Burn: +37). 02881_ Acquired Particle Gun. 02883_ Particle Gun destroyed. 02889_ Acquired Beam Rifle. 02900_ M-13 Machinist fits Backup Power I on G-47 Trooper. 02901_ G-50 Soldier destroyed. 02902_ M-13 Machinist fits Backup Plating I on G-47 Trooper. 02905_ M-13 Machinist repairs G-47 Trooper Aluminum Leg. Map ----- +----------------------------------------------------+ | | | | | | | | | | | ?????????????????????????????????????? | | ?????????????????????????????????????? | | ?????????????????????????????????????? | | ?????????????????????????????????????? | | ?????????????????????????????????????? | | ?????????????????????????????????????? | | ?????????????????????????????????????? | | ?????????????????????????????????????? | | ?????????????????????????###?????????? | | ?????????????????????????#######?????? | | ???????????## """ #???# ########### | | ???????????#####+#####?## ######## | | ???????????## ######## ### | | ???????????## ! ##### | | ???????????## | | ???????????## | | ?????????#### [= % | | ????????##### % #### | | ???????#### [%[= ### ## | | ???????### * = ##### #### # | | ???????##; @%%= # #### # | | ???????### %*! """ # #### # | | ???????### %!= " "" # #### # | | ???????### / """ # #### # | | ???????## g # #### | | ???????### m ] ! # #### | | ???????####+########+#### #### | | ????????### ###### ##### ## | | ?????????## ????????? ##### ## | | ????????? # ?????????? ##### ## | | ????????? # ??????????? ##### ## | | ??????????????????????? #####/## | | ???????????????????????########% + | | ???????????????????????######## % # | | ?????????????????????????????## + | | ?????????????????????????????## " "" # | | ?????????????????????????????## "R"" # | | ?????????????????????????????## """ + | | ?????????????????????????????######### | | ?????????????????????????????######### | | ????????????????????????????????????## | | ???????????????????????????????????? # | | ???????????????????????????????????? # | | ???????????????????????????????????? # | | ???????????????????????????????????? + | +----------------------------------------------------+ Best States ------------- Heat Dissipation 31 Energy Generation 14 Energy Capacity 265 Matter Stores 291 Matter Capacity 300 Sight Range 16 Terrain Scan Density 10 Armor Coverage 150 Utility Shielding 33 Evasion (%) 55 Recoil Reduction 2 Item Schematics ----------------- None Robot Schematics ------------------ None Fabricated ------------ Nothing Repaired ---------- Nothing Alien Tech Used ----------------- None Achievements -------------- None Challenges ------------ None Game ------ Seed SpectralBombShockpuncher Manual? 0 Play Time 00:17:56 Cumulative 32.2 hours Start 2025.09.14 @ 16:09:09 End 2025.09.14 @ 16:27:01 Sessions 1 Manual Loads 0 Difficulty Rogue Special Mode None Game No. 66 Rogue 66 Adventurer 0 Explorer 0 Win Type - Total 1 Types 1/0/0/0/0/0/0/0/0/0 Lore% 22 Gallery% 31 Achievement% 31 Wizard Run 0 Options --------- Layout 1 ASCII 0 Keyboard 0 Movement Mouse Keybinds 0 Fullscreen 1 Font 32/SmallcapsGlow Map View 50x35 Zoom Use 0% Tactical HUD 1 Map Filters NONE Filters NONE Steam 1 RUN: 49e49d6d-68c0-4ef6-bca8-d74320869341